bitfinex/quotes_BTCUSD_20250529
["timestamp","ask_amount","ask_price","bid_price","bid_amount"]
[1748553680694,0.20661588,106400.0,106390.0,1.54228657]
[1748553682347,0.19741748,106400.0,106390.0,1.55168577]
[1748553683351,0.18801899,106400.0,106390.0,1.55168577]
[1748553683832,0.18801899,106400.0,106390.0,1.54851896]
[1748553684054,0.18801899,106400.0,106390.0,1.53911976]
[1748553684483,0.18801899,106400.0,106390.0,1.53911974]
[1748553686970,0.18801899,106400.0,106390.0,1.54851894]
[1748553688414,0.18801899,106400.0,106390.0,1.63523894]
[1748553688649,0.18801899,106400.0,106390.0,1.6352389]
[1748553690205,0.18801899,106400.0,106390.0,1.62581078]
[1748553691253,0.18801899,106400.0,106390.0,1.63520998]
[1748553691845,0.18801899,106400.0,106390.0,1.62581078]
[1748553693029,0.18801899,106400.0,106390.0,1.62581079]
[1748553693671,0.18801899,106400.0,106390.0,1.91069079]
[1748553694312,0.18801899,106400.0,106390.0,1.9064585]
[1748553699127,0.18801899,106400.0,106390.0,1.9158577]
[1748553699340,0.18801899,106400.0,106390.0,1.5442577]
[1748553699564,0.18801899,106400.0,106390.0,1.9764585]
[1748553701737,0.18801899,106400.0,106390.0,1.97645851]
[1748553705488,0.18801899,106400.0,106390.0,1.552635]
[1748553705723,0.18801899,106400.0,106390.0,1.97645851]
[1748553706803,0.16546925,106400.0,106390.0,1.97645851]
[1748553710355,0.16546925,106400.0,106390.0,1.97345188]
[1748553710578,0.16546925,106400.0,106390.0,2.04120572]
[1748553714797,0.16546925,106400.0,106390.0,2.04130285]
[1748553716847,0.16546925,106400.0,106390.0,1.66970285]
[1748553717063,0.16546925,106400.0,106390.0,2.04126285]
[1748553718663,0.16546925,106400.0,106390.0,2.05066205]
[1748553720328,0.16546925,106400.0,106390.0,2.06006116]
[1748553720740,0.16546925,106400.0,106390.0,1.68850116]
[1748553720742,0.16546925,106400.0,106390.0,2.06006116]
[1748553721706,0.14291954,106400.0,106390.0,2.06006116]
[1748553721948,0.14291954,106400.0,106390.0,2.0600699]
[1748553723784,0.14291954,106400.0,106390.0,2.02692769]
[1748553723990,0.14291954,106400.0,106390.0,2.03632671]
[1748553724225,0.14291954,106400.0,106390.0,2.03632627]
[1748553724417,0.00944747,106400.0,106390.0,2.03632627]
[1748553725020,0.01884561,106400.0,106390.0,2.03632574]
[1748553726200,0.01884561,106400.0,106390.0,2.00160824]
[1748553726410,0.01884508,106400.0,106390.0,2.03632608]
[1748553726626,0.21621331,106400.0,106390.0,1.66476608]
[1748553726872,0.02824339,106400.0,106390.0,2.03632608]
[1748553727072,0.02824339,106400.0,106390.0,2.03632605]
[1748553727281,0.02824339,106400.0,106390.0,1.66476605]
[1748553727482,0.02824339,106400.0,106390.0,2.03632605]
[1748553728034,0.03764179,106400.0,106390.0,2.03632605]
[1748553730822,0.03764179,106400.0,106390.0,2.0363257]
[1748553731052,0.22561171,106400.0,106390.0,2.0363257]
[1748553731701,0.03764179,106400.0,106390.0,2.0363257]
[1748553731981,0.03764179,106400.0,106390.0,2.7046337]
[1748553732208,0.2350102,106400.0,106390.0,2.4205887]
[1748553734952,0.22561233,106400.0,106390.0,2.41118994]
[1748553735231,0.22561233,106400.0,106390.0,2.4111888]
[1748553736661,0.20306295,106400.0,106390.0,2.4111888]
[1748553737394,0.21246109,106400.0,106390.0,2.4111888]
[1748553737604,0.21246109,106400.0,106390.0,2.42058764]
[1748553737937,0.2218594,106400.0,106390.0,2.42058764]
[1748553739439,0.2218594,106400.0,106390.0,2.42058704]
[1748553743730,0.2218594,106400.0,106390.0,2.42058615]
[1748553744138,0.2218594,106400.0,106390.0,2.40607815]
[1748553744971,0.2218594,106400.0,106390.0,1.98225464]
[1748553745181,0.2218594,106400.0,106390.0,2.40607815]
[1748553745608,0.2218594,106400.0,106390.0,1.98225464]
[1748553745850,0.2218594,106400.0,106390.0,2.40607815]
[1748553746065,0.00939787,106400.0,106390.0,2.40607771]
[1748553746281,0.20315372,106420.0,106410.0,0.34]
[1748553746505,0.18854436,106420.0,106410.0,0.80980575]
[1748553746743,0.18854436,106420.0,106410.0,1.23362926]
[1748553746961,0.18854436,106420.0,106410.0,1.63362926]
[1748553747223,0.18854436,106420.0,106410.0,1.23362926]
[1748553747437,0.18954436,106420.0,106410.0,1.23362926]
[1748553751945,0.18954436,106420.0,106410.0,1.24301441]
[1748553752568,0.18954436,106420.0,106410.0,1.2753141]
[1748553753187,0.18914436,106420.0,106410.0,1.2753141]
[1748553756669,0.18914436,106420.0,106410.0,1.27230783]
[1748553756879,0.18914436,106420.0,106410.0,1.27531411]
[1748553758690,0.18914436,106420.0,106410.0,0.8514906]
[1748553758900,0.18914436,106420.0,106410.0,1.34531411]
[1748553759332,0.18914436,106420.0,106410.0,1.34527411]
[1748553759786,0.18914436,106420.0,106410.0,1.31297411]
[1748553760438,0.18914436,106420.0,106410.0,1.34387411]
[1748553761519,0.22144436,106420.0,106410.0,0.5176706]
[1748553761735,0.20524436,106420.0,106410.0,1.31293411]
[1748553761947,0.18914436,106420.0,106410.0,1.31293411]
[1748553762656,0.18914436,106420.0,106410.0,0.8891106]
[1748553763599,0.18914436,106420.0,106410.0,1.31293411]
[1748553765406,0.18914436,106420.0,106410.0,1.30992783]
[1748553765632,0.18914436,106420.0,106410.0,1.31293411]
[1748553766299,0.18914436,106420.0,106410.0,0.94149411]
[1748553766504,0.18914436,106420.0,106410.0,1.24293411]
[1748553766939,0.18914436,106420.0,106410.0,1.27513411]
[1748553768871,0.18359655,106420.0,106410.0,1.27513411]
[1748553769866,0.18359655,106420.0,106410.0,1.34513415]
[1748553770084,0.18359655,106420.0,106410.0,1.34509415]
[1748553772872,0.18359655,106420.0,106410.0,1.31289415]
[1748553773283,0.18359655,106420.0,106410.0,1.32949415]
[1748553773492,0.18359655,106420.0,106410.0,1.34539415]
[1748553774264,0.18359655,106420.0,106410.0,1.34539416]
[1748553776479,0.18359655,106420.0,106410.0,0.63399416]
[1748553776687,0.18359655,106420.0,106410.0,0.93539416]
[1748553778291,0.18359655,106420.0,106410.0,0.56399416]
[1748553778512,0.18359655,106420.0,106410.0,1.00539416]
[1748553779798,0.18359655,106420.0,106410.0,1.34539416]
[1748553780452,0.18359655,106420.0,106410.0,1.74539416]
[1748553782568,0.18359655,106420.0,106410.0,1.37399416]
[1748553782826,0.18359655,106420.0,106410.0,1.74539416]
[1748553785445,0.18359655,106420.0,106410.0,1.37399416]
[1748553785687,0.18359655,106420.0,106410.0,1.67539416]
[1748553786134,0.18359655,106420.0,106410.0,1.67539417]
[1748553789086,0.18359655,106420.0,106410.0,1.30399417]
[1748553789329,0.18359655,106420.0,106410.0,1.67531417]
[1748553789678,0.18359655,106420.0,106410.0,1.33531417]
[1748553791758,0.18359655,106420.0,106410.0,1.67531417]
[1748553791980,0.18359655,106420.0,106410.0,1.74531417]
[1748553792205,0.18359655,106420.0,106410.0,1.32149066]
[1748553794584,0.18359655,106420.0,106410.0,1.38631062]
[1748553794802,0.18359655,106420.0,106410.0,1.35318381]
[1748553795010,0.18359655,106420.0,106410.0,1.38630753]
[1748553796143,0.18359655,106420.0,106410.0,1.31630753]
[1748553798637,0.18359655,106420.0,106410.0,1.74013104]
[1748553799279,0.18359655,106420.0,106410.0,1.74013385]
[1748553801810,0.18359655,106420.0,106410.0,1.77763385]
[1748553802430,0.18359655,106420.0,106410.0,1.38421034]
[1748553803313,0.18359655,106420.0,106410.0,1.80803385]
[1748553804495,0.18359655,106420.0,106410.0,1.43671385]
[1748553804721,0.18359655,106420.0,106410.0,1.80799385]
[1748553806121,0.18359655,106420.0,106410.0,1.52335385]
[1748553806339,0.18359655,106420.0,106410.0,1.80799385]
[1748553806559,0.18359655,106420.0,106410.0,1.40631385]
[1748553806775,0.18359655,106420.0,106410.0,0.71125668]
[1748553806986,0.18359655,106420.0,106410.0,0.74165668]
[1748553807202,0.18359655,106420.0,106410.0,0.71125668]
[1748553808078,0.18359655,106420.0,106410.0,0.71125677]
[1748553808288,0.18359655,106420.0,106410.0,0.70187162]
[1748553810260,0.18359655,106420.0,106410.0,0.78851162]
[1748553813570,0.60742006,106420.0,106410.0,0.07723162]
[1748553813774,0.62262006,106420.0,106410.0,0.36081461]
[1748553814392,0.63792006,106420.0,106410.0,0.36081461]
[1748553814716,0.62262006,106420.0,106410.0,0.36081461]
[1748553815545,0.63792006,106420.0,106410.0,0.07617461]
[1748553815803,0.63792006,106420.0,106410.0,0.3576464]
[1748553815804,1.06174357,106420.0,106410.0,0.3576464]
[1748553816006,0.63792006,106420.0,106410.0,0.3576464]
[1748553816212,0.63792006,106420.0,106410.0,0.0730064]
[1748553816711,0.63792006,106420.0,106410.0,0.07]
[1748553816912,0.63792006,106420.0,106410.0,0.07300672]
[1748553817135,1.15279752,106420.0,106410.0,0.07300672]
[1748553817346,1.15279752,106420.0,106410.0,0.00300672]
[1748553817562,1.15279752,106420.0,106400.0,0.28557534]
[1748553817563,0.19734969,106410.0,106400.0,0.28557534]
[1748553817770,0.22884969,106410.0,106400.0,0.28858235]
[1748553817981,0.22884969,106410.0,106400.0,0.00394235]
[1748553817982,0.6526732,106410.0,106400.0,0.00394235]
[1748553819470,0.65197318,106410.0,106400.0,0.00394235]
[1748553819679,0.65197318,106410.0,106400.0,0.00494235]
[1748553821175,0.65197318,106410.0,106400.0,0.00494239]
[1748553825488,0.65197318,106410.0,106400.0,0.00494246]
[1748553827925,1.16685064,106410.0,106400.0,0.00193534]
[1748553828147,0.74302713,106410.0,106400.0,0.00193534]
[1748553829260,1.16685064,106410.0,106400.0,0.00193534]
[1748553829702,1.25345064,106410.0,106400.0,0.00193534]
[1748553831493,1.25445064,106410.0,106400.0,0.00093534]
[1748553832358,1.25545064,106410.0,106400.0,0.00093534]
[1748553832785,1.74335064,106410.0,106400.0,0.00093534]
[1748553832999,2.14335064,106410.0,106400.0,0.00093534]
[1748553833435,2.56717415,106410.0,106400.0,0.00093534]
[1748553834154,2.14335064,106410.0,106400.0,0.00093534]
[1748553835947,2.17156664,106410.0,106400.0,0.00093534]
[1748553837231,2.27052664,106410.0,106400.0,0.00093534]
[1748553842694,2.55520664,106410.0,106400.0,0.00093534]
[1748553849448,2.56475168,106410.0,106400.0,0.00093534]
[1748553857319,2.98857519,106410.0,106400.0,0.00093534]
[1748553857528,1.43242466,106410.0,106400.0,0.00093534]
[1748553857757,2.56475168,106410.0,106400.0,0.00093534]
[1748553860602,2.46579168,106410.0,106400.0,0.00093534]
[1748553862339,2.88961519,106410.0,106400.0,0.00093534]
[1748553862763,2.46579168,106410.0,106400.0,0.00093534]
[1748553863202,2.46575168,106410.0,106400.0,0.00093534]
[1748553863437,2.90411604,106410.0,106400.0,0.00093534]
[1748553863661,2.94307604,106410.0,106400.0,0.00093534]
[1748553864584,2.94207604,106410.0,106400.0,0.00093534]
[1748553864788,2.94507604,106410.0,106400.0,0.00093534]
[1748553865646,3.03658726,106410.0,106400.0,0.00093534]
[1748553865864,2.94807604,106410.0,106400.0,0.00093534]
[1748553867857,0.20684404,106360.0,106350.0,0.41863715]
[1748553868078,0.63066755,106360.0,106350.0,0.42164551]
[1748553868294,0.63066755,106360.0,106350.0,0.44968362]
[1748553868476,0.63066755,106360.0,106350.0,0.38361726]
[1748553868719,1.05449106,106360.0,106350.0,0.04361726]
[1748553869149,1.05449106,106360.0,106350.0,0.04376449]
[1748553869376,1.05449106,106360.0,106350.0,0.05251924]
[1748553869595,1.14554501,106360.0,106350.0,0.03735559]
[1748553869806,1.14554501,106360.0,106350.0,0.03434723]
[1748553870444,1.14554501,106360.0,106350.0,0.03834723]
[1748553870676,1.14554501,106360.0,106350.0,0.03534723]
[1748553870897,1.14554501,106360.0,106350.0,0.03134723]
[1748553871112,1.14554501,106360.0,106350.0,0.03334723]
[1748553871534,1.43022501,106360.0,106350.0,0.03334723]
[1748553871972,1.43022501,106360.0,106350.0,0.03534723]
[1748553872849,1.43022501,106360.0,106350.0,0.03334723]
[1748553873316,1.43022501,106360.0,106350.0,0.03134723]
[1748553873534,0.58257799,106360.0,106350.0,0.03434723]
[1748553873742,1.85404852,106360.0,106350.0,0.03434723]
[1748553873950,1.43022501,106360.0,106350.0,0.03434723]
[1748553879018,1.43022501,106360.0,106350.0,0.03413287]
[1748553879234,2.20404852,106360.0,106350.0,0.00314723]
[1748553879505,3.68509516,106360.0,106350.0,0.00314723]
[1748553879713,0.20688295,106340.0,106330.0,0.04380396]
[1748553880001,1.94088743,106340.0,106330.0,0.04385303]
[1748553880644,2.28088743,106340.0,106330.0,0.04385303]
[1748553881535,2.28188743,106340.0,106330.0,0.04385303]
[1748553881973,1.85806392,106340.0,106330.0,0.04385303]
[1748553882191,1.43509089,106340.0,106330.0,0.06005303]
[1748553883045,1.43709089,106340.0,106330.0,0.06005303]
[1748553888478,1.44709089,106340.0,106330.0,0.02865303]
[1748553889755,1.10709089,106340.0,106330.0,0.02865303]
[1748553892144,1.10709089,106340.0,106330.0,0.06055303]
[1748553894859,1.59499089,106340.0,106330.0,0.06055303]
[1748553898270,2.51043857,106340.0,106330.0,0.02865303]
[1748553898481,2.08576458,106340.0,106330.0,0.02865303]
[1748553898692,1.74252058,106340.0,106330.0,0.02865303]
[1748553898915,2.11504058,106340.0,106330.0,0.02865303]
[1748553899825,2.57141457,106340.0,106330.0,0.02865303]
[1748553900489,2.46908173,106340.0,106330.0,0.02865303]
[1748553900711,2.45348173,106340.0,106330.0,0.02865303]
[1748553900933,2.02880774,106340.0,106330.0,0.02865303]
[1748553901164,2.02876774,106340.0,106330.0,0.05945303]
[1748553901383,2.02876774,106340.0,106330.0,0.02865303]
[1748553902266,2.08687896,106340.0,106330.0,0.02865303]
[1748553902484,1.97876774,106340.0,106330.0,0.02865303]
[1748553903785,1.49086774,106340.0,106330.0,0.02865303]
[1748553904049,2.34051803,106340.0,106330.0,0.02865303]
[1748553904992,2.42947803,106340.0,106330.0,0.02865303]
[1748553905218,2.53778925,106340.0,106330.0,0.02865303]
[1748553905441,2.55368925,106340.0,106330.0,0.02865303]
[1748553905659,2.45472925,106340.0,106330.0,0.02865303]
[1748553905883,3.72905353,106340.0,106330.0,0.02865303]
[1748553906110,2.45472925,106340.0,106330.0,0.02865303]
[1748553906354,0.28773902,106330.0,106320.0,4e-05]
[1748553906596,0.36879297,106330.0,106320.0,4e-05]
[1748553906822,1.64311725,106330.0,106320.0,4e-05]
[1748553907046,1.66422478,106330.0,106320.0,4e-05]
[1748553907941,1.756736,106330.0,106320.0,4e-05]
[1748553908155,1.58065176,106330.0,106320.0,4e-05]
[1748553908374,0.20751675,106320.0,106310.0,4e-05]
[1748553908591,0.20751675,106320.0,106310.0,8.907e-05]
[1748553908592,1.14832196,106320.0,106310.0,8.907e-05]
[1748553908820,1.16286281,106320.0,106310.0,8.907e-05]
[1748553909041,1.19110381,106320.0,106310.0,8.907e-05]
[1748553910342,1.68898235,106320.0,106310.0,8.907e-05]
[1748553910558,1.21608235,106320.0,106310.0,8.907e-05]
[1748553910779,1.23218235,106320.0,106310.0,8.907e-05]
[1748553911855,1.63854235,106320.0,106310.0,8.907e-05]
[1748553914707,0.2069608,106300.0,106290.0,0.03131452]
[1748553914917,1.09581038,106300.0,106290.0,0.0313636]
[1748553924440,1.43581038,106300.0,106290.0,0.0313636]
[1748553928248,1.86068601,106300.0,106290.0,0.0313636]
[1748553928705,1.87068601,106300.0,106290.0,0.0313636]
[1748553929116,1.89893101,106300.0,106290.0,0.0313636]
[1748553929755,1.9081292,106300.0,106290.0,0.0313636]
[1748553929959,2.33352167,106300.0,106290.0,0.0313636]
[1748553930378,2.82142167,106300.0,106290.0,0.0313636]
[1748553930785,2.84843814,106300.0,106290.0,0.0313636]
[1748553931211,2.89843814,106300.0,106290.0,0.0313636]
[1748553931221,2.88596252,106300.0,106290.0,4.908e-05]
[1748553931428,2.85176252,106300.0,106290.0,4.908e-05]
[1748553931643,2.86836252,106300.0,106290.0,4.908e-05]
[1748553931860,2.95087374,106300.0,106290.0,4.908e-05]
[1748553932731,4.32707747,106300.0,106290.0,4.908e-05]
[1748553933370,4.32907747,106300.0,106290.0,4.908e-05]
[1748553934025,2.62916273,106300.0,106290.0,4.908e-05]
[1748553934236,0.54699975,106280.0,106270.0,0.0306]
[1748553934445,1.21044006,106280.0,106270.0,0.03109116]
[1748553935140,1.23869106,106280.0,106270.0,0.03109116]
[1748553936394,1.23869106,106280.0,106270.0,0.03309116]
[1748553936810,1.31749213,106280.0,106270.0,0.03309116]
[1748553937016,1.17498091,106280.0,106270.0,0.00249116]
[1748553937238,1.20323291,106280.0,106270.0,0.03359116]
[1748553937689,1.61462044,106280.0,106270.0,0.00249116]
[1748553937903,1.6322182,106280.0,106270.0,0.00149116]
[1748553938590,1.6822182,106280.0,106270.0,0.00149116]
[1748553938846,1.6322182,106280.0,106270.0,0.00149116]
[1748553939058,1.6322182,106280.0,106270.0,0.00049116]
[1748553939473,1.61462044,106280.0,106270.0,0.00049116]
[1748553941360,2.0398068,106280.0,106270.0,0.00049116]
[1748553944310,2.0561068,106280.0,106270.0,0.00049116]
[1748553944740,2.0398068,106280.0,106270.0,0.00049116]
[1748553945503,2.1451668,106280.0,106270.0,0.00049116]
[1748553945761,2.17506987,106280.0,106270.0,0.00049116]
[1748553946543,2.17706987,106280.0,106270.0,0.00049116]
[1748553946772,2.17906987,106280.0,106270.0,0.00049116]
[1748553947214,2.19496987,106280.0,106270.0,0.00049116]
[1748553949617,2.17906987,106280.0,106270.0,0.00049116]
[1748553950952,2.0456668,106280.0,106270.0,0.03079116]
[1748553951194,1.25375959,106280.0,106270.0,0.03079116]
[1748553951456,1.56058759,106280.0,106270.0,0.03079116]
[1748553951700,1.90082759,106280.0,106270.0,0.03079116]
[1748553952634,1.05344123,106280.0,106270.0,0.03079116]
[1748553952891,0.30696123,106280.0,106270.0,0.03079116]
[1748553953119,0.21099975,106280.0,106270.0,0.03079116]
[1748553953851,0.17258216,106280.0,106270.0,0.03079116]
[1748553954146,0.19139975,106280.0,106270.0,0.03380181]
[1748553955792,0.19139975,106280.0,106270.0,0.03480181]
[1748553956257,0.19139975,106280.0,106270.0,0.03580177]
[1748553957014,0.19139975,106280.0,106270.0,0.43279116]
[1748553958186,0.19139975,106280.0,106270.0,0.43283116]
[1748553958866,0.19190044,106280.0,106270.0,0.43283116]
[1748553960043,0.19190044,106280.0,106270.0,0.03283116]
[1748553960514,0.19190044,106280.0,106270.0,0.43283116]
[1748553963539,0.19190044,106280.0,106270.0,0.03283116]
[1748553963977,0.19190044,106280.0,106270.0,0.43283116]
[1748553966925,0.19190044,106280.0,106270.0,0.03283116]
[1748553967561,0.19190044,106280.0,106270.0,0.43283116]
[1748553969653,0.6170868,106280.0,106270.0,0.03283116]
[1748553970752,0.19190044,106280.0,106270.0,0.03283116]
[1748553979446,0.19190044,106280.0,106270.0,0.03584198]
[1748553991967,0.61685868,106280.0,106270.0,0.03584198]
[1748553993892,0.61685868,106280.0,106270.0,0.03283116]
[1748553994102,0.61685868,106280.0,106270.0,0.03584197]
[1748553995007,0.19190044,106280.0,106270.0,0.03584197]
[1748553995220,0.61685868,106280.0,106270.0,0.03584197]
[1748553998269,0.61685868,106280.0,106270.0,0.03283116]
[1748553998477,0.61685868,106280.0,106270.0,0.03584197]
[1748553998908,0.19190044,106280.0,106270.0,0.03584197]
[1748554002676,0.19190044,106280.0,106270.0,0.03584195]
[1748554004150,0.19190044,106280.0,106270.0,0.03901688]
[1748554004366,0.19190044,106280.0,106270.0,0.03584195]
[1748554011494,0.19190044,106280.0,106270.0,0.03584193]
[1748554013090,0.19190044,106280.0,106270.0,0.00554193]
[1748554013505,0.19190044,106280.0,106270.0,0.02204193]
[1748554013711,0.19190044,106280.0,106270.0,0.03714193]
[1748554014593,0.19190044,106280.0,106270.0,0.0403162]
[1748554014809,0.19190044,106280.0,106270.0,0.03714193]
[1748554015309,0.61685868,106280.0,106270.0,0.03714193]
[1748554015967,0.61685868,106280.0,106270.0,0.03714195]
[1748554016599,0.61685868,106280.0,106270.0,0.00554195]
[1748554020204,0.61685868,106280.0,106270.0,0.00554201]
[1748554021721,0.61685868,106280.0,106270.0,0.01505818]
[1748554021957,0.61685868,106280.0,106270.0,0.00554201]
[1748554022653,0.61685868,106280.0,106270.0,0.03664201]
[1748554022931,0.61685868,106280.0,106270.0,0.03664199]
[1748554023440,0.61685868,106280.0,106270.0,0.00554199]
[1748554026411,0.61685868,106280.0,106270.0,0.015099]
[1748554027223,0.61685868,106280.0,106270.0,0.01208817]
[1748554027450,0.61685868,106280.0,106270.0,0.01509905]
[1748554027900,0.61685868,106280.0,106270.0,0.01509904]
[1748554033843,0.61685868,106280.0,106270.0,0.00554203]
[1748554033844,1.13287087,106280.0,106270.0,0.00554203]
[1748554034088,1.16547087,106280.0,106270.0,0.00253116]
[1748554035426,1.17501492,106280.0,106270.0,0.00253116]
[1748554038817,1.59997316,106280.0,106270.0,0.00253116]
[1748554039287,1.17501492,106280.0,106270.0,0.00253116]
[1748554039759,1.59997316,106280.0,106270.0,0.00253116]
[1748554039975,1.66291492,106280.0,106270.0,0.00253116]
[1748554040199,1.67745577,106280.0,106270.0,0.00253116]
[1748554040441,2.42099401,106280.0,106270.0,0.00253116]
[1748554040654,2.42590154,106280.0,106270.0,0.00253116]
[1748554041074,2.37590154,106280.0,106270.0,0.00253116]
[1748554041286,2.37590154,106280.0,106270.0,0.00153116]
[1748554041498,2.37790154,106280.0,106270.0,0.00153116]
[1748554041722,2.40615554,106280.0,106270.0,0.00153116]
[1748554041938,2.40415554,106280.0,106270.0,0.00053116]
[1748554042364,2.40915554,106280.0,106270.0,0.00053116]
[1748554042793,2.41115554,106280.0,106270.0,0.00053116]
[1748554043019,2.40915554,106280.0,106270.0,0.00053116]
[1748554043482,2.41415554,106280.0,106270.0,0.00053116]
[1748554046606,2.51321554,106280.0,106270.0,0.00053116]
[1748554046836,2.50321554,106280.0,106270.0,0.00053116]
[1748554047047,0.23865819,106250.0,106240.0,0.0001]
[1748554047253,0.23865819,106250.0,106240.0,0.00014908]
[1748554047254,1.55138862,106250.0,106240.0,0.00014908]
[1748554051828,2.03928862,106250.0,106240.0,0.00014908]
[1748554065995,2.45382947,106250.0,106240.0,0.00014908]
[1748554066206,2.48208947,106250.0,106240.0,0.00014908]
[1748554066613,2.58114947,106250.0,106240.0,0.00014908]
[1748554068105,2.58314947,106250.0,106240.0,0.00014908]
[1748554068309,2.58514947,106250.0,106240.0,0.00014908]
[1748554069393,2.13204404,106250.0,106240.0,0.00014908]
[1748554069612,2.08204404,106250.0,106240.0,0.00014908]
[1748554071356,2.04724947,106250.0,106240.0,0.00014908]
[1748554074229,2.47220771,106250.0,106240.0,0.00014908]
[1748554075900,2.46220771,106250.0,106240.0,0.00014908]
[1748554083279,2.03724947,106250.0,106240.0,0.00014908]
[1748554083708,2.46220771,106250.0,106240.0,0.00014908]
[1748554085168,2.03724947,106250.0,106240.0,0.00014908]
[1748554085973,2.46220771,106250.0,106240.0,0.00014908]
[1748554087041,2.55471893,106250.0,106240.0,0.00014908]
[1748554087247,2.46220771,106250.0,106240.0,0.00014908]
[1748554087893,2.86892771,106250.0,106240.0,0.00014908]
[1748554090008,0.61220633,106240.0,106230.0,4e-05]
[1748554090249,1.978135,106240.0,106230.0,0.0001789]
[1748554090670,1.98304253,106240.0,106230.0,0.0001789]
[1748554091381,3.44109504,106240.0,106230.0,0.0001389]
[1748554091583,0.56224354,106220.0,106210.0,0.00014]
[1748554091794,1.02509749,106220.0,106210.0,0.00014]
[1748554092008,2.29997221,106220.0,106210.0,0.00014]
[1748554092220,2.32824021,106220.0,106210.0,0.00014]
[1748554092845,1.10636549,106220.0,106210.0,0.00014]
[1748554093084,1.10636549,106220.0,106210.0,0.03234]
[1748554093085,2.38324021,106220.0,106210.0,0.03234]
[1748554097328,2.38324021,106220.0,106210.0,0.00014]
[1748554100428,2.38324021,106220.0,106200.0,4e-05]
[1748554100429,0.61226216,106210.0,106200.0,4e-05]
[1748554100650,2.41669083,106210.0,106200.0,4e-05]
[1748554101118,2.41669083,106210.0,106180.0,4e-05]
[1748554101119,0.53775855,106190.0,106180.0,4e-05]
[1748554101337,2.27552722,106190.0,106180.0,4e-05]
[1748554101773,2.35006807,106190.0,106180.0,4e-05]
[1748554102487,2.35206807,106190.0,106180.0,0.00017895]
[1748554102690,0.19777717,106180.0,106170.0,0.02014]
[1748554102915,0.62883112,106180.0,106170.0,0.02014]
[1748554103137,1.90370584,106180.0,106170.0,0.02014]
[1748554103798,1.4787476,106180.0,106170.0,0.02014]
[1748554104021,1.4787476,106180.0,106170.0,0.05244]
[1748554104261,1.90370584,106180.0,106170.0,0.05244]
[1748554104693,1.90570584,106180.0,106170.0,0.05244]
[1748554105126,1.90770584,106180.0,106170.0,0.05244]
[1748554106958,2.00021706,106180.0,106170.0,0.02014]
[1748554107383,1.90770584,106180.0,106170.0,0.02014]
[1748554108052,1.4847951,106180.0,106170.0,0.02014]
[1748554108713,1.4999951,106180.0,106170.0,0.02014]
[1748554109192,1.4847951,106180.0,106170.0,0.02014]
[1748554110071,1.4847951,106180.0,106160.0,4e-05]
[1748554110072,0.21233665,106170.0,106160.0,4e-05]
[1748554110306,0.64385528,106160.0,106140.0,0.00014]
[1748554110526,1.02010923,106160.0,106140.0,0.00014]
[1748554110744,1.88802621,106160.0,106140.0,0.00014]
[1748554111177,1.98053743,106160.0,106140.0,0.00014]
[1748554111430,0.56237392,106150.0,106140.0,0.00014]
[1748554111638,1.55539185,106150.0,106140.0,0.00014]
[1748554111860,1.95881185,106150.0,106140.0,0.00014]
[1748554112520,1.96820857,106150.0,106140.0,0.00014]
[1748554112741,1.92674857,106150.0,106140.0,0.00063164]
[1748554112961,1.92678857,106150.0,106140.0,0.03263164]
[1748554113179,1.54024772,106150.0,106140.0,0.03263164]
[1748554113402,2.00475894,106150.0,106140.0,0.03263164]
[1748554113625,1.06028374,106150.0,106140.0,0.00063164]
[1748554113855,1.06028374,106150.0,106140.0,0.00163164]
[1748554114101,1.91224772,106150.0,106140.0,0.00163164]
[1748554114347,1.06028374,106150.0,106140.0,0.00163164]
[1748554114571,0.54785171,106140.0,106130.0,0.0159534]
[1748554114791,1.49541049,106140.0,106130.0,0.0159534]
[1748554115932,1.88952718,106140.0,106130.0,0.0159534]
[1748554116368,1.92272718,106140.0,106130.0,0.0159534]
[1748554116829,1.94152718,106140.0,106130.0,0.0159534]
[1748554117265,1.93952718,106140.0,106130.0,0.0159534]
[1748554117491,1.94152718,106140.0,106130.0,0.0159534]
[1748554117700,1.94452718,106140.0,106130.0,0.0159534]
[1748554118137,1.96082718,106140.0,106130.0,0.0159534]
[1748554118581,1.94452718,106140.0,106130.0,0.0159534]
[1748554119031,2.0693384,106140.0,106130.0,0.0159534]
[1748554119693,1.97682718,106140.0,106130.0,0.0159534]
[1748554121020,2.00511618,106140.0,106130.0,0.0159534]
[1748554121227,1.99342371,106140.0,106130.0,0.0159534]
[1748554123728,1.61786371,106140.0,106130.0,0.0159534]
[1748554123950,1.99338371,106140.0,106130.0,0.0159534]
[1748554124408,2.04338371,106140.0,106130.0,0.0159534]
[1748554124624,2.06236086,106140.0,106130.0,0.0159534]
[1748554125045,2.04338371,106140.0,106130.0,0.0159534]
[1748554126127,2.02768371,106140.0,106130.0,0.0159534]
[1748554126796,1.73892371,106140.0,106130.0,0.0159534]
[1748554127006,2.02764371,106140.0,106130.0,0.0159534]
[1748554127220,0.73565888,106140.0,106130.0,0.0473534]
[1748554127456,0.43749319,106140.0,106130.0,0.0473534]
[1748554127698,0.72629319,106140.0,106130.0,0.0473534]
[1748554128383,0.25285171,106140.0,106130.0,0.0473534]
[1748554128591,0.25285171,106140.0,106130.0,0.47333539]
[1748554129056,0.20285171,106140.0,106130.0,0.47634998]
[1748554129266,0.19985171,106140.0,106130.0,0.47634997]
[1748554129576,0.18841262,106150.0,106140.0,0.0324]
[1748554129789,0.18841262,106150.0,106140.0,0.03541458]
[1748554130006,0.18841262,106150.0,106140.0,0.46139657]
[1748554130216,0.47711487,106160.0,106140.0,0.46139657]
[1748554130217,0.18839487,106160.0,106150.0,0.0324]
[1748554130657,0.18839487,106160.0,106150.0,0.46139603]
[1748554130658,0.18844383,106160.0,106150.0,0.46139603]
[1748554131310,0.18844383,106160.0,106150.0,0.03541404]
[1748554131759,0.18844383,106160.0,106150.0,0.0324]
[1748554131988,0.18844383,106160.0,106150.0,0.46139602]
[1748554133260,0.18844383,106160.0,106150.0,0.03541403]
[1748554133539,0.18844383,106160.0,106150.0,0.0334]
[1748554133748,0.18844383,106160.0,106150.0,0.03641398]
[1748554134650,0.18844383,106160.0,106150.0,0.0334]
[1748554135080,0.18844383,106160.0,106150.0,0.03641397]
[1748554135522,0.18844383,106160.0,106150.0,0.0334]
[1748554140545,0.47676383,106160.0,106150.0,0.0334]
[1748554140759,0.52676383,106160.0,106150.0,0.0334]
[1748554140957,0.47676383,106160.0,106150.0,0.0334]
[1748554146726,0.47676383,106160.0,106150.0,0.4334]
[1748554148002,0.47676383,106160.0,106150.0,0.0334]
[1748554151426,0.52676383,106160.0,106150.0,0.0334]
[1748554151664,0.47676383,106160.0,106150.0,0.0334]
[1748554152551,0.18844383,106160.0,106150.0,0.0334]
[1748554152758,0.47620383,106160.0,106150.0,0.4334]
[1748554153389,0.47620383,106160.0,106150.0,0.0334]
[1748554153820,0.47620383,106160.0,106150.0,0.03641401]
[1748554154027,0.47620383,106160.0,106150.0,0.0334]
[1748554154438,0.47620383,106160.0,106150.0,0.03641401]
[1748554155303,0.47620383,106160.0,106150.0,0.03645401]
[1748554156586,0.52620383,106160.0,106150.0,0.03645401]